bitfinex-derivatives/quotes_ETHF0:USTF0_20250730
["timestamp","ask_amount","ask_price","bid_price","bid_amount"]
[1753870217704,1.9561,3794.0,3793.9,1.77265]
[1753870217910,1.9561,3794.0,3793.9,2.17365]
[1753870219010,1.9561,3794.0,3793.9,1.77265]
[1753870219707,1.9561,3794.0,3793.9,2.17365]
[1753870219908,1.9561,3794.0,3793.9,1.77265]
[1753870220107,1.32156,3793.9,3793.8,0.52716]
[1753870220304,2.48326,3793.9,3793.8,0.52716]
[1753870220702,1.32158,3793.8,3793.7,0.81268]
[1753870220903,1.9561,3793.8,3793.7,1.27728]
[1753870221607,1.9561,3793.8,3793.7,2.14238]
[1753870224505,1.9561,3793.8,3793.7,2.45048]
[1753870224706,3.6985,3794.4,3794.3,1.7465]
[1753870225005,1.233,3794.4,3794.3,2.4387]
[1753870225208,0.782,3794.6,3794.5,1.29908]
[1753870225409,1.1774,3794.6,3794.5,2.43868]
[1753870225708,1.9197,3794.6,3794.5,2.43868]
[1753870226206,1.0916,3794.3,3794.2,0.52712]
[1753870226413,1.9197,3794.3,3794.2,0.83002]
[1753870226806,1.487,3794.3,3794.2,2.13062]
[1753870227110,1.6284,3794.6,3794.5,1.29908]
[1753870227312,1.6284,3794.6,3794.5,2.43868]
[1753870227706,1.9197,3794.6,3794.5,2.43868]
[1753870228214,1.9197,3794.6,3794.5,2.13058]
[1753870228710,1.9197,3794.6,3794.5,1.6035]
[1753870229514,1.9197,3794.6,3794.5,1.2194]
[1753870230411,0.8003,3794.3,3794.2,0.52711]
[1753870230611,1.9197,3794.3,3794.2,0.52711]
[1753870231606,1.9197,3794.3,3794.2,1.27741]
[1753870231808,1.9197,3794.3,3794.2,1.47761]
[1753870232109,1.9197,3794.3,3794.2,2.13061]
[1753870232918,1.9197,3794.3,3794.2,0.9505]
[1753870233305,1.9197,3794.3,3794.2,0.3029]
[1753870233707,1.9197,3794.3,3793.6,19.3852]
[1753870233708,0.8003,3793.7,3793.6,19.3852]
[1753870234006,0.8003,3793.7,3793.6,19.6933]
[1753870234007,1.9197,3793.7,3793.6,19.6933]
[1753870234606,1.5243,3793.7,3793.6,0.8301]
[1753870234813,1.5243,3793.7,3793.6,19.3635]
[1753870235012,1.9197,3793.7,3793.6,2.1307]
[1753870235210,1.9197,3793.7,3793.6,0.5272]
[1753870235715,1.9197,3793.7,3793.6,0.8301]
[1753870235913,1.9197,3793.7,3793.6,1.2775]
[1753870236815,1.9197,3793.7,3793.6,2.1307]
[1753870237011,1.487,3793.9,3793.8,1.74657]
[1753870237316,42.7197,3793.9,3793.8,2.43877]
[1753870237509,42.7197,3793.9,3793.8,1.6035]
[1753870239314,42.7197,3793.9,3793.8,1.9116]
[1753870239614,41.582,3793.9,3793.8,1.9116]
[1753870239811,0.782,3793.9,3793.8,1.9116]
[1753870240016,1.1774,3793.9,3793.8,1.9116]
[1753870240317,1.9197,3793.9,3793.8,1.9116]
[1753870241016,1.9197,3793.9,3793.8,1.6035]
[1753870241814,1.9197,3793.9,3793.8,1.2194]
[1753870242617,1.9197,3793.9,3793.8,1.6035]
[1753870245508,0.8945,3794.2,3794.1,0.8872]
[1753870245710,1.32735,3794.7,3794.6,1.29905]
[1753870245913,1.233,3794.7,3794.6,2.13055]
[1753870246421,1.9197,3794.7,3794.6,2.13055]
[1753870251119,0.2913,3794.7,3794.6,2.13055]
[1753870251322,0.2913,3795.0,3794.9,2.42662]
[1753870251519,3.7291,3795.3,3795.2,1.03538]
[1753870251720,0.3297,3795.3,3795.2,2.42658]
[1753870251913,0.018,3795.3,3795.2,2.42658]
[1753870252424,0.018,3795.3,3795.2,7.69632507]
[1753870252823,0.5117,3795.9,3795.8,1.30569]
[1753870253026,0.5117,3795.9,3795.8,2.42649]
[1753870253220,0.9128,3795.9,3795.8,2.42649]
[1753870253526,1.6793,3795.9,3795.8,2.42649]
[1753870253727,2.1067,3795.9,3795.8,2.42649]
[1753870255023,2.1067,3795.9,3795.8,1.8996]
[1753870255224,0.7665,3795.6,3795.5,1.72962]
[1753870255423,0.7665,3795.6,3795.5,2.42652]
[1753870255424,1.9067,3795.6,3795.5,2.42652]
[1753870257331,1.4793,3795.6,3795.5,2.42652]
[1753870258838,0.5033,3795.8,3795.7,1.69461]
[1753870259033,0.3117,3795.8,3795.7,1.69461]
[1753870259445,0.2,3795.9,3795.8,1.8996]
[1753870259736,0.2,3795.9,3795.8,19.9786]
[1753870262438,0.3117,3796.5,3796.4,0.7788]
[1753870262645,0.3117,3796.5,3796.4,1.8996]
[1753870262938,1.31675,3797.2,3796.4,1.8996]
[1753870262939,4.3754,3796.9,3796.8,1.30555]
[1753870263142,4.8028,3796.9,3796.8,2.11835]
[1753870263538,5.1145,3796.9,3796.8,1.5916]
[1753870264334,0.52675,3796.8,3796.6,0.52677]
[1753870264539,1.01,3796.8,3796.7,2.11836]
[1753870264739,1.9067,3796.8,3796.7,1.5916]
[1753870265239,1.9067,3796.8,3796.7,0.3095]
[1753870265643,1.9067,3796.8,3796.7,1.5916]
[1753870266544,1.9067,3796.8,3796.6,18.077]
[1753870266740,1.1402,3796.7,3796.6,18.077]
[1753870267039,2.43347,3796.7,3796.6,18.077]
[1753870267236,1.9067,3796.7,3796.6,18.077]
[1753870267441,1.9067,3796.7,3796.6,19.0093]
[1753870267746,1.9067,3796.7,3796.6,19.2797]
[1753870268737,0.52685,3796.2,3796.0,0.52686]
[1753870269039,1.29335,3796.2,3796.1,18.074]
[1753870269232,1.29335,3796.2,3796.0,6.21856187]
[1753870269233,1.9067,3796.1,3796.0,5.26780187]
[1753870269631,1.9067,3796.0,3795.9,18.074]
[1753870270133,1.9067,3796.0,3795.9,18.8074]
[1753870270538,1.9067,3796.0,3795.9,0.9323]
[1753870270734,1.29341,3795.7,3795.6,3.6317]
[1753870270935,0.7665,3795.5,3795.4,0.7788]
[1753870271143,0.7665,3795.5,3795.4,19.6656]
[1753870271445,1.5056,3795.5,3795.4,24.93478973]
[1753870271638,1.9067,3795.5,3795.4,24.93478973]
[1753870272341,1.9067,3795.5,3795.4,25.24278973]
[1753870272642,1.4793,3795.5,3795.4,25.24278973]
[1753870272832,0.4274,3795.8,3795.4,26.09084973]
[1753870273039,0.3117,3795.7,3795.6,5.1074]
[1753870273437,1.1821,3795.7,3795.6,5.1074]
[1753870273633,1.9067,3795.7,3795.6,5.1074]
[1753870274446,3.9743,3796.1,3796.0,1.2027]
[1753870274640,3.9743,3796.1,3796.0,1.5916]
[1753870274842,5.1145,3796.1,3796.0,1.5916]
[1753870275040,5.1145,3796.1,3796.0,6.8602345]
[1753870275241,3.2078,3796.1,3796.0,7.1682345]
[1753870275943,3.2078,3796.1,3796.0,25.2422345]
[1753870276433,0.3117,3796.1,3796.0,28.4500345]
[1753870276838,1.4793,3796.1,3796.0,24.9342345]
[1753870277144,1.9067,3796.1,3796.0,24.9342345]
[1753870277536,1.4793,3796.1,3796.0,25.2422345]
[1753870277743,0.3117,3796.1,3796.0,25.2422345]
[1753870278447,0.8704,3796.4,3796.3,1.0868]
[1753870278647,1.595,3796.4,3796.3,2.42642]
[1753870278839,1.595,3796.4,3796.3,2.11842]
[1753870279037,1.9067,3796.4,3796.3,2.11842]
[1753870279235,1.4793,3796.4,3796.3,2.42642]
[1753870279443,5.1145,3796.8,3796.7,2.11837]
[1753870280546,1.9067,3796.8,3796.7,2.11837]
[1753870281343,0.3117,3796.8,3796.7,7.69403313]
[1753870282748,5.0878,3797.2,3797.1,2.11711]
[1753870288948,1.3393,3797.9,3797.8,2.42192]
[1753870289142,0.7042,3797.9,3797.8,23.69772]
[1753870289339,0.4964,3797.9,3797.8,28.96482822]
[1753870289541,0.2,3797.9,3797.8,28.96482822]
[1753870289942,0.2258,3798.3,3798.2,1.73316]
[1753870290143,1.118,3799.1,3798.4,1.31631]
[1753870290340,1.5836,3798.6,3798.5,19.06312]
[1753870290544,1.88,3798.6,3798.5,19.57782]
[1753870290754,1.88,3798.6,3798.5,20.02192]
[1753870290952,1.88,3798.6,3798.5,19.83812]
[1753870291345,1.1393,3798.6,3798.5,20.32682]
[1753870291660,1.2109,3798.7,3798.6,1.6953]
[1753870291951,0.762,3798.7,3798.6,1.7902]
[1753870292153,0.5042,3798.7,3798.6,2.2218]
[1753870292340,1.88,3798.7,3798.6,1.9169]
[1753870292541,1.88,3798.7,3798.6,1.2066]
[1753870292747,1.88,3798.7,3798.6,0.3108]
[1753870293254,1.88,3798.7,3798.6,1.4728]
[1753870293549,1.88,3798.7,3798.6,1.3904]
[1753870293851,1.88,3798.7,3798.6,0.3108]
[1753870294449,1.88,3798.7,3798.6,0.9463]
[1753870295649,4.52389,3799.2,3798.8,0.2039]
[1753870295650,0.52647,3798.9,3798.8,0.2039]
[1753870295954,1.1393,3798.9,3798.8,19.8053]
[1753870296152,1.88,3798.9,3798.8,19.8053]
[1753870296451,1.88,3798.9,3798.8,19.5004]
[1753870296651,1.88,3798.9,3798.8,19.3166]
[1753870296852,1.88,3798.9,3798.8,19.5004]
[1753870297147,0.8429,3799.0,3798.9,0.7365]
[1753870297355,0.8429,3799.0,3798.9,1.68888266]
[1753870297854,1.1393,3799.0,3798.9,1.68888266]
[1753870299155,0.8769,3799.2,3799.1,0.775]
[1753870299456,0.8429,3799.4,3799.3,1.6953]
[1753870299954,3.2078,3799.6,3799.4,0.52639]
[1753870300156,2.08,3799.9,3799.8,1.47264]
[1753870300350,2.08,3799.9,3799.8,20.02074]
[1753870300550,2.08,3799.9,3799.8,25.28479832]
[1753870300746,2.08,3799.9,3799.8,25.58969832]
[1753870301454,2.08,3799.9,3799.8,24.14305832]
[1753870301651,2.08,3799.9,3799.8,23.36805832]
[1753870301845,0.52634,3799.8,3799.5,3.2078]
[1753870302051,0.762,3799.2,3799.1,3.2078]
[1753870302357,1.88,3799.2,3799.1,21.3118]
[1753870303654,1.88,3799.2,3799.1,3.2078]
[1753870303952,1.88,3799.2,3799.1,21.3238]
[1753870304259,1.88,3798.8,3798.7,3.2078]
[1753870304451,1.88,3798.8,3798.7,21.8355]
[1753870304652,1.88,3798.8,3798.7,22.2671]
[1753870306558,1.88,3798.8,3798.7,22.5274]
[1753870306755,1.88,3798.8,3798.7,22.7112]
[1753870308059,1.88,3798.8,3798.7,22.5274]
[1753870308261,1.88,3798.8,3798.7,22.2671]
[1753870309460,1.88,3798.8,3798.7,21.8355]
[1753870310055,0.762,3799.2,3799.1,0.5147]
[1753870310255,1.0584,3799.2,3799.1,1.3904]
[1753870310761,1.88,3799.2,3799.1,1.2066]
[1753870311452,0.4602,3799.5,3799.1,6.22333544]
[1753870311657,1.2338,3799.5,3799.4,1.1999]
[1753870311857,1.2338,3799.5,3799.4,0.9404]
[1753870312058,1.9129,3799.5,3799.4,0.4911]
[1753870312256,1.9129,3799.5,3799.2,18.63441]
[1753870312257,0.7736,3799.3,3799.2,19.12551]
[1753870312461,1.9129,3799.3,3799.2,20.05091]
[1753870312660,1.1507,3799.3,3799.2,25.61992977]
[1753870314362,1.4527,3799.3,3799.2,25.61992977]
[1753870314665,1.9129,3798.8,3798.7,5.45589]
[1753870314967,1.1507,3798.8,3798.7,28.82008688]
[1753870315160,0.3899,3799.2,3799.1,1.27704]
[1753870315462,0.6791,3799.2,3799.1,28.82172976]
[1753870315663,1.9129,3799.5,3799.4,1.44459]
[1753870315862,1.9129,3799.5,3799.4,20.34699]
[1753870316062,0.8791,3799.9,3799.8,2.24794]
[1753870316266,0.2,3799.9,3799.8,23.55874]
[1753870316460,0.2,3799.9,3799.8,28.82265977]
[1753870317362,0.4892,3799.9,3799.8,28.82265977]
[1753870317561,0.8791,3799.9,3799.8,28.82265977]
[1753870318365,2.1129,3799.9,3799.8,28.51755977]
[1753870318668,2.1129,3799.9,3799.8,9.88821977]
[1753870319060,2.1129,3799.9,3799.8,3.2078]
[1753870319265,2.1129,3799.9,3799.2,3.4172]
[1753870319266,2.43931,3799.3,3799.2,3.4172]
[1753870319573,1.9129,3799.3,3799.2,21.3148]
[1753870320065,1.9129,3799.3,3799.2,22.2552]
[1753870320365,1.9129,3799.3,3799.2,22.7313]
[1753870320867,1.9129,3799.3,3799.2,27.99549688]
[1753870321068,1.1507,3799.3,3799.2,28.30059688]
[1753870321263,1.9129,3799.6,3799.5,0.7506]
[1753870321465,2.1129,3799.9,3799.8,1.72624]
[1753870321662,1.6527,3799.9,3799.8,23.56274]
[1753870322170,2.1129,3799.9,3799.8,23.56274]
[1753870322473,1.6527,3799.9,3799.8,23.56274]
[1753870323368,2.1129,3799.9,3799.8,4.93404]
[1753870323670,2.1129,3799.9,3799.8,23.04504]
[1753870323858,2.1129,3799.9,3799.8,23.26164]
[1753870324061,2.1129,3799.9,3799.8,23.56674]
[1753870324267,2.1129,3799.9,3799.8,23.26164]
[1753870324465,2.1129,3799.9,3799.8,23.04504]
[1753870324665,2.1129,3799.9,3799.8,4.93404]
[1753870324870,2.1129,3799.9,3799.8,23.04004]
[1753870325666,2.1129,3799.9,3799.8,22.33124]
[1753870325977,2.1129,3799.9,3799.8,28.82510565]
[1753870326269,1.6527,3799.9,3799.8,28.82510565]
[1753870326470,1.1489,3799.9,3799.8,28.82510565]
[1753870326670,0.8791,3799.9,3799.8,28.82510565]
[1753870327469,1.6527,3799.9,3799.8,28.82510565]
[1753870327773,2.1129,3799.9,3799.8,28.82510565]
[1753870328271,2.1129,3799.9,3799.8,3.2078]
[1753870328470,1.9129,3799.2,3799.1,4.67464]
[1753870328669,1.9129,3799.7,3799.6,0.52637]
[1753870328970,1.9129,3799.7,3799.6,19.56877]
[1753870329173,1.9129,3799.7,3799.6,20.04487]
[1753870329584,1.4527,3799.7,3799.6,20.34997]
[1753870329768,0.9736,3799.9,3799.8,1.72624]
[1753870329973,1.6527,3799.9,3799.8,20.35094]
[1753870330169,2.1129,3799.9,3799.8,20.35094]
[1753870331272,0.2,3799.9,3799.8,20.35094]
[1753870333168,0.6716,3799.9,3799.8,20.35094]
[1753870333376,1.6527,3799.9,3799.8,20.35094]
[1753870333575,2.1129,3799.9,3799.8,20.35094]
[1753870334079,2.1129,3799.9,3799.8,20.04584]
[1753870334578,2.1129,3799.9,3799.8,20.35094]
[1753870336080,2.1129,3799.9,3799.8,20.04584]
[1753870336880,2.1129,3799.9,3799.8,20.33994]
[1753870339481,2.1129,3799.9,3799.8,20.03484]
[1753870339681,1.3507,3799.9,3799.8,25.60330565]
[1753870339879,1.6527,3799.9,3799.8,25.60330565]
[1753870340080,2.1129,3799.9,3799.8,25.60330565]
[1753870342585,2.1129,3799.9,3799.8,6.98960565]
[1753870342777,2.1129,3799.9,3799.8,25.06960565]
[1753870343386,2.1129,3799.9,3799.8,25.27150565]
[1753870344484,2.1129,3799.9,3799.8,25.06960565]
[1753870345379,2.1129,3799.9,3799.8,19.79924]
[1753870345682,2.1129,3799.9,3799.8,19.09044]
[1753870346077,2.1129,3799.9,3799.8,19.51724]
[1753870346384,1e-05,3799.9,3799.8,25.54440565]
[1753870347286,1e-05,3799.9,3799.8,28.11325577]
[1753870347482,1.4248,3801.1,3801.0,0.52616]
[1753870347676,1.9337,3801.1,3801.0,18.64616]
[1753870348083,1.9337,3801.1,3801.0,18.12]
[1753870349586,1.31327,3801.0,3800.9,3.2078]
[1753870349784,2.45987,3801.0,3800.9,21.3258]
[1753870350691,2.45987,3801.0,3800.9,21.3208]
[1753870351285,2.45987,3801.0,3800.9,3.2078]
[1753870351488,0.52632,3800.0,3799.9,3.73411]
[1753870351683,1.77302,3800.0,3799.9,21.3328]
[1753870351885,1.77302,3800.0,3799.9,26.59464243]
[1753870352385,1.77307,3799.6,3799.5,3.73417]
[1753870352582,1.2467,3799.6,3799.5,22.35947]
[1753870352784,1.2467,3799.6,3799.5,22.78627]
[1753870352988,1.2467,3799.6,3799.5,22.2599]
[1753870353185,1.2467,3799.6,3799.5,21.6354]
[1753870353690,1.2467,3799.6,3799.5,21.3318]
[1753870354484,1.2467,3799.6,3799.5,18.124]
[1753870354687,1.31577,3800.1,3799.2,0.7304]
[1753870354688,0.5123,3799.3,3799.2,0.7304]
[1753870354985,1.2467,3799.3,3799.2,24.32688123]
[1753870355189,1.2467,3799.3,3799.2,23.70238123]
[1753870355389,1.2467,3799.3,3799.2,23.39878123]
[1753870355584,1.46981,3799.3,3799.2,18.135]
[1753870355794,0.9434,3799.3,3799.2,18.135]
[1753870355987,0.9434,3799.3,3799.2,18.8654]
[1753870356193,1.2467,3799.3,3799.2,18.8654]
[1753870356594,1.9337,3799.3,3799.2,18.8654]
[1753870356893,1.9337,3799.3,3799.2,19.0631]
[1753870358399,1.9337,3799.3,3799.2,25.09109688]
[1753870358697,1.9337,3799.3,3799.2,24.80309688]
[1753870359497,1.9337,3799.3,3799.2,24.60119688]
[1753870359698,1.9337,3799.3,3799.2,24.32729688]
[1753870359998,1.9337,3799.3,3799.2,18.6363]
[1753870360198,1.9337,3799.3,3799.2,18.135]
[1753870360993,1.9337,3799.3,3799.2,18.9102]
[1753870361299,1.9337,3799.3,3799.2,19.8269]
[1753870361902,1.5026,3799.3,3799.2,25.09109688]
[1753870362092,1.9337,3799.3,3799.2,25.09109688]
[1753870364000,1.9337,3799.3,3799.2,24.80309688]
[1753870364597,1.9337,3799.3,3799.2,23.82599688]
[1753870365096,1.31352,3799.3,3799.2,18.114]
[1753870365501,0.7871,3799.3,3799.2,18.114]
[1753870365801,1.9337,3799.3,3799.2,19.316]
[1753870366197,1.9337,3799.3,3799.2,19.0421]
[1753870367505,40.8,3799.4,3799.3,0.52641]
[1753870367713,0.7871,3799.4,3799.3,1.30161]
[1753870367915,1.2182,3799.4,3799.3,1.58961]
[1753870368415,1.9337,3799.4,3799.3,2.21831]
[1753870369107,1.5026,3800.0,3799.9,1.93022]
[1753870369320,1.9337,3800.0,3799.9,5.42602]
[1753870369503,1.9337,3800.0,3799.9,10.69007832]
[1753870369812,1.9337,3800.0,3799.9,8.99817832]
[1753870370011,0.3067,3799.6,3799.5,3.2078]
[1753870370209,1.9337,3799.6,3799.5,3.73418]
[1753870370609,1.9337,3799.6,3799.5,3.2078]
[1753870371013,6.9337,3799.6,3799.5,3.2078]
[1753870371618,42.7337,3799.6,3799.5,3.2078]
[1753870372919,0.7681,3799.0,3798.9,18.63745]
[1753870373212,0.7385,3798.9,3798.8,0.52647]
[1753870373515,1.9153,3798.9,3798.8,18.63947]
[1753870374717,1.9153,3798.9,3798.8,18.92457]
[1753870374918,1.9153,3798.9,3798.8,20.00667]
[1753870375116,1.9153,3798.9,3798.8,20.31497]
[1753870376517,1.9153,3798.9,3798.8,20.00167]
[1753870376711,1.9153,3798.9,3798.8,19.2845]
[1753870376909,2.44178,3798.8,3798.7,3.2078]
[1753870379114,2.44183,3798.4,3798.3,3.2078]
[1753870379621,2.44183,3798.4,3797.8,0.19484708]
[1753870379810,2.4419,3798.0,3797.9,22.7604]
[1753870380121,1.9153,3798.0,3797.9,22.7604]
[1753870380426,1.9153,3798.0,3797.9,23.2026]
[1753870380623,1.9153,3798.0,3797.9,23.5109]
[1753870381819,0.9126,3798.3,3798.2,0.52656]
[1753870382023,1.1798,3798.3,3798.2,2.20206]
[1753870382224,1.9153,3798.3,3798.2,2.20206]
[1753870382427,1.9153,3798.3,3798.2,1.3672]
[1753870382925,1.9153,3798.3,3798.2,1.1765]
[1753870383325,1.9153,3798.3,3798.2,0.2851]
[1753870383525,0.2955,3798.1,3798.0,0.925]
[1753870383724,0.7681,3798.1,3798.0,1.3672]
[1753870384022,2.44189,3798.1,3798.0,0.7284]
[1753870384324,2.44189,3798.1,3798.0,1.1765]
[1753870384624,2.44189,3798.1,3798.0,1.3672]
[1753870384822,2.44189,3798.1,3797.9,3.2078]
[1753870385027,0.7681,3798.0,3797.9,3.2078]
[1753870385323,1.9153,3798.0,3797.9,3.2078]
[1753870386325,2.4419,3797.9,3797.8,0.72146708]
[1753870386623,1.9153,3797.9,3797.8,1.64646708]
[1753870386926,1.9153,3797.9,3797.8,2.08866708]
[1753870387324,1.9153,3797.9,3797.8,1.56204708]
[1753870388621,1.9153,3797.9,3797.8,0.47994708]
[1753870390334,1.9153,3797.9,3797.8,0.92324708]
[1753870390925,0.79288,3798.1,3798.0,0.7332]
[1753870391130,2.00185,3798.3,3798.2,0.7332]
[1753870391331,2.44185,3798.3,3798.2,1.3672]
[1753870391531,1.9153,3798.3,3798.2,1.3672]
[1753870391829,0.2985,3798.3,3798.2,6.94136011]
[1753870392230,1.9153,3798.6,3798.5,2.20202]
[1753870392425,1.9153,3798.6,3798.5,1.89372]
[1753870392623,1.9153,3798.6,3798.5,1.3672]
[1753870394327,1.9153,3798.6,3798.5,1.6755]
[1753870394836,1.4753,3798.6,3798.5,1.6755]
[1753870395226,1.9153,3798.6,3798.5,1.1765]
[1753870397134,1.9153,3798.6,3798.5,1.3672]
[1753870397332,0.4726,3798.9,3798.8,0.52646]
[1753870397531,0.52644,3799.1,3799.0,1.25965]
[1753870397728,0.2985,3799.1,3799.0,4.96645]
[1753870397924,1.2403,3799.1,3799.0,5.40975]
[1753870398233,1.9153,3799.1,3799.0,5.40975]
[1753870399832,1.1798,3799.1,3799.0,5.40975]
[1753870400338,1.2081,3799.4,3799.3,1.87981]
[1753870400536,1.2081,3799.4,3799.3,1.3534]
[1753870400731,42.0081,3799.4,3799.3,1.3534]
[1753870400932,42.2753,3799.4,3799.3,1.3534]
[1753870401133,0.96637,3799.6,3799.5,0.7332]
[1753870401134,0.6463,3799.6,3799.5,0.7332]
[1753870401328,1.9153,3799.6,3799.5,1.6617]
[1753870401532,42.7153,3799.6,3799.5,1.6617]
[1753870401736,42.2753,3799.6,3799.5,1.6617]
[1753870401937,20.47802,3800.0,3799.9,0.7735]
[1753870402132,20.47802,3800.0,3799.9,1.3798]
[1753870402333,61.27802,3800.0,3799.9,1.3798]
[1753870402539,60.7517,3800.0,3799.9,1.3798]
[1753870403032,60.7517,3800.0,3799.8,0.52633]
[1753870403033,0.7525,3800.3,3800.2,0.79447]
[1753870403239,1.8617,3800.3,3800.2,1.3798]
[1753870405342,1.8617,3800.3,3800.2,0.9352]
[1753870405541,1.8617,3800.3,3800.2,0.3065]
[1753870406138,0.7525,3800.0,3799.9,1.90612]
[1753870406437,0.4214,3799.3,3799.2,0.7364]
[1753870406637,1.8617,3799.2,3799.1,3.2078]
[1753870406834,1.4403,3799.2,3799.1,4.8888]
[1753870407742,0.2948,3799.2,3799.1,10.15313544]
[1753870408045,1.70029,3799.5,3799.4,0.7735]
[1753870408244,2.09329,3799.5,3799.4,1.3798]
[1753870408742,2.38809,3799.5,3799.4,1.3798]
[1753870409240,2.38809,3799.5,3799.4,1.2034]
[1753870409435,2.38809,3799.5,3799.4,0.9352]
[1753870409641,2.38812,3799.2,3799.1,3.2078]
[1753870409848,0.52639,3799.5,3798.9,1.03175]
[1753870409849,0.7525,3799.0,3798.9,1.03175]
[1753870410042,1.8617,3799.0,3798.9,1.90625]
[1753870412148,1.8617,3799.0,3798.9,1.3798]
[1753870412549,1.8617,3799.0,3798.9,0.9352]
[1753870413248,1.8617,3799.0,3798.9,1.3798]
[1753870416950,1.8617,3799.0,3798.9,1.2034]
[1753870417252,2.38816,3798.9,3798.8,0.52647]
[1753870417551,2.38816,3798.9,3798.8,5.79108259]
[1753870417955,1.8617,3798.9,3798.8,7.17088259]
[1753870420651,1.8617,3798.9,3798.8,7.47208259]
[1753870420852,1.4403,3798.9,3798.8,7.47208259]
[1753870421056,1.8617,3798.9,3798.8,7.47208259]
[1753870422956,1.8617,3798.9,3798.8,6.46801259]
[1753870423359,1.8617,3798.9,3798.8,0.9352]
[1753870423550,2.38818,3798.8,3798.7,3.2078]
[1753870426655,2.38823,3798.4,3798.3,3.2078]
[1753870426958,1.8617,3798.0,3797.9,4.66959]
[1753870427157,1.8617,3798.0,3797.9,3.5143]
[1753870427359,1.8617,3798.0,3797.9,3.2078]
[1753870427662,1.8617,3798.0,3797.9,4.6696]
[1753870428363,0.2948,3798.0,3797.9,10.68139876]
[1753870428562,2.38825,3798.3,3798.2,2.20756]
[1753870428858,2.38825,3798.3,3798.2,1.681]
[1753870429162,2.38825,3798.3,3798.2,1.3798]
[1753870429358,43.18825,3798.3,3798.2,1.3798]
[1753870429751,41.3586,3798.3,3798.2,1.3798]
[1753870429957,1.27905,3798.3,3798.2,0.7735]
[1753870430662,1.27905,3798.3,3798.2,1.8921]
[1753870430864,42.07905,3798.3,3798.2,1.8921]
[1753870431863,43.23745,3798.3,3798.2,1.8921]
[1753870432163,43.23745,3798.3,3798.2,0.8065]
[1753870432559,43.23745,3798.3,3798.2,1.5348]
[1753870432760,43.23745,3798.3,3798.2,1.9832]
[1753870433757,43.23745,3798.3,3798.2,1.5348]
[1753870435059,0.52657,3798.1,3798.0,0.2148]
[1753870435360,0.52657,3798.1,3798.0,0.8433]
[1753870435361,2.49987,3798.1,3798.0,0.8433]
[1753870435958,2.4999,3797.9,3797.8,2.27227708]
[1753870436161,2.4999,3797.9,3797.8,0.25227708]
[1753870438072,1.9362,3797.9,3797.8,0.25227708]
[1753870438367,1.9363,3797.2,3797.1,4.6706]
[1753870439464,1.9363,3797.2,3797.1,0.7174]
[1753870440163,1.9363,3797.2,3796.7,3.2078]
[1753870440164,0.52675,3796.8,3796.7,3.2078]
[1753870440362,1.93635,3796.8,3796.7,4.2393]
[1753870440765,1.93635,3796.8,3796.7,4.6706]
[1753870441671,1.93635,3796.8,3796.7,4.2222]
[1753870441871,42.73635,3796.8,3796.7,4.2222]
[1753870442069,42.73635,3796.8,3796.7,1.0144]
[1753870442676,1.1087,3796.5,3796.4,1.4628]
[1753870442972,1.9364,3796.5,3796.4,1.4628]
[1753870443172,1.9733,3796.5,3796.4,2.02]
[1753870443377,0.2917,3796.5,3796.4,2.02]
[1753870446570,0.9668,3796.7,3796.6,1.5887]
[1753870446878,40.8,3796.8,3796.7,1.32467]
[1753870447078,0.52672,3797.1,3797.0,2.54673]
[1753870447571,41.32672,3797.1,3797.0,2.54673]
[1753870447768,40.8,3797.1,3797.0,2.54673]
[1753870447967,0.52668,3797.4,3797.3,0.52667]
[1753870448172,0.52668,3797.4,3797.3,2.02]
[1753870448678,42.29348,3797.4,3797.3,2.02]
[1753870449575,41.7668,3797.4,3797.3,2.02]
[1753870449878,42.4831,3797.4,3797.3,2.02]
[1753870450176,1.9733,3797.1,3797.0,1.32462]
[1753870450571,1.9733,3797.1,3797.0,7.36515081]
[1753870450774,1.9733,3797.1,3797.0,7.81355081]
[1753870450974,2.50001,3797.1,3797.0,7.81355081]
[1753870451175,1.9733,3797.1,3797.0,7.81355081]
[1753870451476,1.9733,3797.1,3797.0,6.06473081]
[1753870451668,1.9733,3797.1,3796.8,3.2078]
[1753870451669,0.52673,3797.0,3796.8,3.5502]
[1753870451872,0.8149,3796.9,3796.8,0.8433]
[1753870452073,1.9733,3796.9,3796.8,0.8433]
[1753870452273,1.3524,3796.5,3796.4,1.3026]
[1753870452572,1.3524,3796.5,3796.4,6.85594694]
[1753870452771,1.3524,3796.5,3796.4,7.28724694]
[1753870452978,1.3524,3796.5,3796.4,7.81404694]
[1753870453269,0.52673,3797.0,3796.9,0.297]
[1753870453477,0.52673,3797.0,3796.9,1.6776]
[1753870453672,0.52673,3797.0,3796.9,2.02]
[1753870453869,2.50003,3797.0,3796.9,2.02]
[1753870454874,1.34168,3796.6,3796.5,1.2292]
[1753870455077,2.50008,3796.6,3796.5,1.6776]
[1753870455274,2.16938,3796.6,3796.5,1.6776]
[1753870455476,2.16938,3796.6,3796.5,2.02]
[1753870455773,0.52678,3796.6,3796.5,2.02]
[1753870456770,0.5247,3796.7,3796.6,2.54678]
[1753870456976,0.96886,3796.8,3796.6,2.02]
[1753870457283,0.96886,3796.8,3796.7,2.02]
[1753870457472,0.52676,3796.8,3796.7,2.02]
[1753870457882,1.05146,3796.8,3796.7,2.02]